bitfinex-derivatives/quotes_SOLF0:USTF0_20241015
["timestamp","ask_amount","ask_price","bid_price","bid_amount"]
[1728953178632,0.12502,157.61,157.54,20.44]
[1728953178837,3.1732,157.6,157.56,3.1738]
[1728953179631,0.12502,157.61,157.54,20.44]
[1728953179941,0.12502,157.61,157.53,20.44]
[1728953180136,3.1737,157.57,157.54,3.1742]
[1728953180641,0.12502,157.61,157.53,20.44]
[1728953181539,3.1737,157.57,157.54,3.1741]
[1728953182442,3.174,157.55,157.53,15.28]
[1728953182935,3.1745,157.53,157.49,0.12502]
[1728953183137,3.1745,157.53,157.5,3.175]
[1728953183340,5.16,157.58,157.49,0.12502]
[1728953183535,3.1745,157.53,157.49,0.12502]
[1728953183741,5.16,157.58,157.49,0.12502]
[1728953184245,5.16,157.58,157.51,15.28]
[1728953185045,3.1739,157.56,157.52,3.1744]
[1728953185242,3.1739,157.56,157.51,15.28]
[1728953185839,3.1739,157.56,157.5,24.39]
[1728953186548,3.1733,157.59,157.56,3.1737]
[1728953186748,0.12502,157.61,157.56,3.1737]
[1728953186947,0.12502,157.61,157.53,29.55]
[1728953187243,3.1731,157.6,157.56,3.1737]
[1728953188153,3.1733,157.59,157.56,3.1737]
[1728953188541,0.12502,157.61,157.54,1.3933]
[1728953188845,3.1737,157.57,157.52,5.24]
[1728953190439,3.1737,157.57,157.54,3.1742]
[1728953192347,0.12502,157.61,157.52,5.24]
[1728953192655,3.1731,157.6,157.56,3.1737]
[1728953192851,0.12502,157.61,157.56,3.1737]
[1728953193055,3.1733,157.59,157.56,3.1737]
[1728953193350,0.12502,157.61,157.53,25.7277]
[1728953193549,3.29802,157.61,157.53,25.7277]
[1728953193751,0.12502,157.61,157.55,24.39]
[1728953194248,0.12502,157.61,157.55,3.1739]
[1728953194452,0.12502,157.61,157.55,24.39]
[1728953195449,3.1744,157.54,157.52,3.8446]
[1728953195654,5.24,157.59,157.52,1.2586]
[1728953195848,5.24,157.59,157.51,5.24]
[1728953196049,8.46406086,157.59,157.49,0.12502]
[1728953196352,24.39,157.58,157.49,0.12502]
[1728953196551,3.175,157.5,157.49,0.12502]
[1728953197554,5.24,157.52,157.49,0.12502]
[1728953197754,3.1749,157.51,157.49,0.12502]
[1728953198554,27.1027,157.58,157.49,0.12502]
[1728953198764,5.24,157.57,157.49,0.12502]
[1728953199156,3.1746,157.53,157.49,3.30012]
[1728953199351,3.1746,157.53,157.49,0.12502]
[1728953199658,3.1746,157.53,157.49,3.30022]
[1728953199849,2.7127,157.58,157.49,0.12502]
[1728953199850,3.1742,157.55,157.49,0.12502]
[1728953200254,5.24,157.56,157.49,0.12502]
[1728953200560,3.1742,157.54,157.49,0.12502]
[1728953200960,5.24,157.56,157.5,3.1749]
[1728953201255,2.7127,157.58,157.49,24.51502]
[1728953201456,24.39,157.63,157.49,24.51502]
[1728953201758,5.24,157.6,157.52,24.39]
[1728953202261,3.173,157.6,157.52,24.39]
[1728953202662,3.29782,157.61,157.57,3.1735]
[1728953203165,3.29782,157.61,157.51,5.24]
[1728953203166,0.12502,157.61,157.55,29.63]
[1728953203361,0.12502,157.61,157.56,6.5808]
[1728953204864,3.29792,157.61,157.57,3.1736]
[1728953205259,3.29792,157.61,157.56,6.5808]
[1728953205260,0.12502,157.61,157.56,6.5808]
[1728953205465,0.12502,157.61,157.53,5.24]
[1728953205768,29.63,157.6,157.51,5.24]
[1728953206065,29.63,157.6,157.52,3.1746]
[1728953206960,3.1737,157.57,157.53,3.1744]
[1728953210266,3.1737,157.57,157.54,3.1742]
[1728953210463,3.1737,157.57,157.51,5.24]
[1728953210654,3.1738,157.56,157.51,5.24]
[1728953211058,5.24,157.6,157.51,8.4147]
[1728953211259,24.39,157.57,157.49,0.12502]
[1728953211470,6.6076,157.56,157.49,0.12502]
[1728953211658,9.2145,157.56,157.49,0.12502]
[1728953212460,3.1748,157.52,157.49,0.12502]
[1728953212660,9.2145,157.56,157.49,0.12502]
[1728953213064,3.1749,157.51,157.49,0.12502]
[1728953213465,9.2145,157.56,157.49,0.12502]
[1728953214371,5.24,157.57,157.49,24.51502]
[1728953214666,5.24,157.57,157.52,3.1745]
[1728953214862,5.24,157.57,157.49,24.51502]
[1728953215471,3.1742,157.55,157.52,3.1745]
[1728953215657,5.24,157.57,157.49,24.51502]
[1728953215867,8.4137,157.57,157.53,3.1743]
[1728953216673,68.68502,157.61,157.49,24.51502]
[1728953216972,5.24,157.6,157.49,24.51502]
[1728953217270,3.1733,157.59,157.49,24.51502]
[1728953218271,5.48502,157.61,157.52,24.39]
[1728953218569,5.48502,157.61,157.52,29.75]
[1728953218773,3.1731,157.6,157.56,3.1737]
[1728953219571,3.1731,157.6,157.53,1.2602]
[1728953219772,3.1735,157.58,157.54,3.1742]
[1728953220567,0.12502,157.61,157.53,1.2602]
[1728953220783,3.11273427,157.6,157.53,3.1744]
[1728953221172,3.1744,157.54,157.5,3.1749]
[1728953221373,5.36,157.56,157.49,0.12502]
[1728953221577,5.36,157.55,157.49,0.12502]
[1728953221766,3.1748,157.52,157.49,0.12502]
[1728953221966,5.36,157.55,157.49,0.12502]
[1728953222672,3.175,157.51,157.49,0.12502]
[1728953223277,3.1746,157.53,157.49,0.12502]
[1728953223482,5.36,157.55,157.49,0.12502]
[1728953223779,5.36,157.55,157.49,3.30012]
[1728953224079,3.1745,157.53,157.49,3.30012]
[1728953225580,5.36,157.54,157.49,0.12502]
[1728953225777,8.5344,157.54,157.49,0.12502]
[1728953225976,5.36,157.54,157.49,0.12502]
[1728953227278,3.1747,157.52,157.49,3.30012]
[1728953227478,5.36,157.54,157.49,0.12502]
[1728953227875,5.36,157.54,157.52,3.1745]
[1728953228281,5.36,157.54,157.49,0.12502]
[1728953228881,3.175,157.51,157.49,0.12502]
[1728953229079,5.36,157.54,157.49,0.12502]
[1728953230275,3.1748,157.52,157.49,0.12502]
[1728953230987,3.1745,157.53,157.49,3.30012]
[1728953231175,5.36,157.54,157.49,3.30012]
[1728953231892,5.36,157.54,157.49,0.12502]
[1728953232282,3.1748,157.52,157.49,3.30012]
[1728953232482,5.36,157.54,157.49,0.12502]
[1728953232884,5.36,157.54,157.5,3.1749]
[1728953233081,24.39,157.58,157.5,3.1749]
[1728953233384,5.36,157.57,157.49,0.12502]
[1728953233779,3.1741,157.55,157.49,0.12502]
[1728953233988,5.36,157.58,157.49,0.12502]
[1728953234282,5.36,157.58,157.49,2.76742]
[1728953234489,3.1738,157.57,157.49,2.76742]
[1728953235089,5.36,157.58,157.53,3.1743]
[1728953235090,3.1738,157.56,157.53,3.1743]
[1728953235386,5.36,157.58,157.49,2.76742]
[1728953235593,8.5335,157.58,157.52,3.1745]
[1728953235787,8.5335,157.58,157.51,5.36]
[1728953236091,5.36,157.58,157.53,3.1744]
[1728953236287,5.36,157.58,157.51,6.6528]
[1728953236691,3.1734,157.58,157.54,3.1741]
[1728953239992,5.36,157.6,157.51,6.6528]
[1728953240186,3.1733,157.59,157.55,3.1739]
[1728953240689,27.0145,157.65,157.51,6.6528]
[1728953240891,5.36,157.62,157.53,24.39]
[1728953241389,8.5328,157.62,157.55,3.1739]
[1728953241691,8.5328,157.62,157.53,24.39]
[1728953241992,5.36,157.62,157.53,24.39]
[1728953242192,3.29782,157.61,157.57,3.1735]
[1728953242691,3.1732,157.6,157.51,6.6528]
[1728953243093,0.12502,157.61,157.51,6.6528]
[1728953243486,3.29802,157.61,157.57,3.1735]
[1728953244089,3.29802,157.61,157.51,6.6528]
[1728953244090,3.1731,157.6,157.56,3.1736]
[1728953244398,0.12502,157.61,157.51,6.6528]
[1728953244896,3.29792,157.61,157.57,3.1735]
[1728953246986,0.12502,157.61,157.54,15.24]
[1728953247188,0.12502,157.61,157.6,3.173]
[1728953249697,0.12502,157.61,157.56,15.24]
[1728953249999,0.12502,157.61,157.55,5.26]
[1728953250296,3.29792,157.61,157.58,3.1734]
[1728953250497,0.12502,157.61,157.55,5.26]
[1728953250700,0.12502,157.61,157.52,15.24]
[1728953250893,0.12502,157.61,157.53,5.26]
[1728953251098,3.1734,157.59,157.55,3.1739]
[1728953251301,5.38502,157.61,157.53,5.26]
[1728953252189,0.12502,157.61,157.54,15.24]
[1728953252388,0.12502,157.61,157.55,1.3776]
[1728953252797,3.1731,157.6,157.55,1.3776]
[1728953252996,0.12502,157.61,157.55,1.3776]
[1728953253698,3.29792,157.61,157.57,3.1735]
[1728953253898,0.12502,157.61,157.57,3.1735]
[1728953254402,3.1732,157.59,157.53,5.26]
[1728953254899,3.1732,157.59,157.55,3.1739]
[1728953255803,3.1732,157.59,157.52,5.26]
[1728953255997,3.1732,157.59,157.56,3.1738]
[1728953256501,20.5,157.6,157.52,5.26]
[1728953256704,20.5,157.6,157.55,3.174]
[1728953257400,3.1733,157.59,157.55,3.174]
[1728953258699,0.12502,157.61,157.58,3.1733]
[1728953261204,0.12502,157.61,157.53,15.24]
[1728953262304,0.12502,157.61,157.56,15.24]
[1728953262501,0.12502,157.61,157.59,3.1731]
[1728953267908,0.12502,157.61,157.51,16.5328]
[1728953268103,18.35944113,157.6,157.51,1.2928]
[1728953268309,23.61944113,157.6,157.51,1.2928]
[1728953268514,3.1738,157.57,157.54,3.1741]
[1728953269411,3.1738,157.57,157.55,3.174]
[1728953269804,3.1738,157.57,157.51,1.2928]
[1728953270007,3.1738,157.57,157.54,3.1742]
[1728953271513,23.61944113,157.6,157.51,1.2928]
[1728953271819,15.24,157.57,157.51,1.2928]
[1728953272414,3.1741,157.55,157.52,3.1745]
[1728953273013,5.26,157.56,157.5,3.1749]
[1728953273711,3.1743,157.54,157.5,3.1749]
[1728953274219,3.1743,157.54,157.51,3.1748]
[1728953274416,3.1746,157.53,157.49,0.12502]
[1728953274914,5.26,157.56,157.49,0.12502]
[1728953274915,3.1743,157.54,157.49,0.12502]
[1728953275114,15.24,157.55,157.49,0.12502]
[1728953275513,3.1747,157.52,157.49,0.12502]
[1728953277417,3.1747,157.52,157.49,3.30022]
[1728953277812,3.1746,157.53,157.49,0.12502]
[1728953278010,5.26,157.56,157.49,0.12502]
[1728953278414,3.1747,157.52,157.49,0.12502]
[1728953278613,5.26,157.56,157.49,0.12502]
[1728953278823,5.26,157.56,157.49,3.30022]
[1728953279114,3.1742,157.54,157.49,0.12502]
[1728953279520,3.1744,157.53,157.5,3.175]
[1728953280611,5.26,157.56,157.5,3.175]
[1728953280823,5.26,157.56,157.51,3.1748]
[1728953280824,3.1743,157.54,157.51,3.1748]
[1728953281122,5.26,157.56,157.49,0.12502]
[1728953281323,3.1745,157.53,157.49,3.30012]
[1728953281623,5.26,157.56,157.49,0.12502]
[1728953282217,3.1742,157.54,157.5,3.1749]
[1728953282418,15.24,157.55,157.49,0.12502]
[1728953282818,3.1745,157.53,157.49,3.30012]
[1728953284820,3.1747,157.52,157.49,0.12502]
[1728953285722,15.24,157.55,157.49,0.12502]
[1728953285924,3.1745,157.53,157.5,3.175]
[1728953286120,15.24,157.55,157.49,0.12502]
[1728953286519,3.1745,157.53,157.5,3.175]
[1728953287321,15.24,157.55,157.49,0.12502]
[1728953288025,3.1746,157.53,157.5,3.1749]
[1728953288418,15.24,157.55,157.5,3.1749]
[1728953288621,15.24,157.55,157.49,0.12502]
[1728953288622,3.1745,157.53,157.49,0.12502]
[1728953288824,3.1745,157.53,157.51,3.1748]
[1728953289225,3.1742,157.54,157.52,3.1746]
[1728953289625,5.26,157.56,157.49,0.12502]
[1728953289837,3.1741,157.55,157.49,0.12502]
[1728953290532,3.1741,157.55,157.52,3.1746]
[1728953291232,3.1744,157.53,157.51,3.1748]
[1728953291418,3.1744,157.53,157.49,0.12502]
[1728953291830,3.1744,157.53,157.51,3.1748]
[1728953292132,3.1743,157.54,157.51,3.1748]
[1728953293233,15.24,157.55,157.51,3.1748]
[1728953293434,3.1744,157.54,157.51,3.1748]
[1728953293736,15.24,157.55,157.49,0.12502]
[1728953293934,8.254,157.56,157.49,0.12502]
[1728953294131,5.08,157.56,157.49,0.12502]
[1728953294830,15.24,157.55,157.49,0.12502]
[1728953295030,15.24,157.55,157.49,3.30012]
[1728953295031,3.1747,157.52,157.49,3.30012]
[1728953295233,15.24,157.55,157.49,0.12502]
[1728953295535,3.1745,157.53,157.5,3.1749]
[1728953295733,5.08,157.56,157.49,0.12502]
[1728953296336,5.08,157.57,157.49,0.12502]
[1728953296638,5.08,157.57,157.49,5.20502]
[1728953297040,3.174,157.56,157.52,3.1745]
[1728953297236,5.08,157.57,157.49,5.20502]
[1728953297438,5.08,157.57,157.5,1.3166]
[1728953297636,3.1733,157.59,157.55,3.1739]
[1728953297843,14.84,157.6,157.54,9.76]
[1728953298342,12.9332,157.6,157.56,3.1737]
[1728953298933,12.9332,157.6,157.57,3.1735]
[1728953299132,13.05792,157.61,157.55,9.76]
[1728953299332,9.88502,157.61,157.55,9.76]
[1728953299533,9.76,157.6,157.54,9.76]
[1728953299943,0.12502,157.61,157.53,5.08]
[1728953300138,3.1731,157.6,157.57,3.1735]
[1728953300735,0.12502,157.61,157.53,8.26984276]
[1728953300939,0.12502,157.61,157.54,15.24]
[1728953302435,0.12502,157.61,157.59,3.1731]
[1728953304448,0.12502,157.61,157.6,3.173]
[1728953304848,15.24,157.68,157.58,15.24]
[1728953305048,15.24,157.68,157.59,2.6343]
[1728953305758,3.1715,157.68,157.65,3.172]
[1728953306049,3.1715,157.68,157.6,15.24]
[1728953306243,5.08,157.69,157.6,15.24]
[1728953306444,15.24,157.7,157.61,5.08]
[1728953306948,3.15764098,157.71,157.66,3.1718]
[1728953307248,16.5675,157.76,157.66,15.24]
[1728953307460,5.08,157.75,157.66,15.24]
[1728953307658,15.24,157.74,157.66,5.08]
[1728953308457,3.1707,157.72,157.68,3.1714]
[1728953308852,3.1711,157.7,157.66,3.1716]
[1728953309049,15.24,157.72,157.63,5.08]
[1728953309850,3.1713,157.69,157.65,3.1719]
[1728953310653,3.1716,157.68,157.64,3.1722]
[1728953310957,8.29096128,157.75,157.63,5.08]
[1728953310958,15.24,157.7,157.63,5.08]
[1728953311353,15.24,157.7,157.62,6.4289]
[1728953311957,3.1716,157.68,157.62,6.4289]
[1728953312455,3.1716,157.67,157.64,3.1722]
[1728953313062,3.1716,157.67,157.63,3.1723]
[1728953313355,15.24,157.7,157.63,3.1723]
[1728953313859,3.1717,157.67,157.63,3.1723]
[1728953316655,3.1717,157.67,157.64,3.1722]
[1728953316860,3.1714,157.68,157.64,3.1722]
[1728953317062,5.08,157.71,157.62,21.6689]
[1728953317262,3.1711,157.7,157.64,15.24]
[1728953317665,5.08,157.71,157.64,15.24]
[1728953318170,5.20502,157.73,157.64,15.24]
[1728953318862,3.1712,157.7,157.67,3.1715]
[1728953319168,5.20502,157.73,157.64,15.24]
[1728953319567,3.1713,157.69,157.66,3.1716]
[1728953320971,5.20502,157.73,157.64,15.24]
[1728953321164,15.24,157.71,157.62,21.6689]
[1728953321472,15.24,157.69,157.62,6.4289]
[1728953321875,3.1719,157.66,157.63,3.1723]
[1728953323076,3.1719,157.66,157.62,6.4289]
[1728953323269,3.1719,157.66,157.64,3.1722]
[1728953323778,3.1719,157.66,157.63,3.1724]
[1728953324972,15.24,157.69,157.62,6.4289]
[1728953325672,3.1719,157.66,157.63,3.1723]
[1728953325872,3.1719,157.66,157.62,6.4289]
[1728953326272,3.1719,157.66,157.63,3.1722]
[1728953326667,3.1715,157.68,157.62,21.6689]
[1728953326972,0.12502,157.73,157.66,15.24]
[1728953327175,0.12502,157.73,157.7,15.24]
[1728953327478,0.12502,157.73,157.72,3.1706]
[1728953327671,0.12518,157.8,157.72,15.24]
[1728953327872,3.29432,157.79,157.72,15.24]
[1728953328775,3.29432,157.79,157.75,3.17]
[1728953330073,0.12502,157.79,157.72,15.24]
[1728953330276,0.12502,157.79,157.75,15.24]
[1728953330778,0.12502,157.79,157.77,3.1694]
[1728953332076,0.12502,157.79,157.75,16.4995]
[1728953332373,0.12502,157.79,157.78,3.1694]
[1728953332969,0.12518,157.8,157.79,3.1692]
[1728953333171,3.1682,157.84,157.78,6.4667]
[1728953333373,0.12502,157.85,157.8,3.1688]
[1728953333576,0.12502,157.85,157.79,15.24]
[1728953333778,3.29302,157.85,157.79,15.24]
[1728953334882,3.1686,157.83,157.78,1.3867]
[1728953335082,3.1686,157.83,157.78,6.4667]
[1728953335779,0.12502,157.85,157.78,9.636]
[1728953335975,3.1684,157.83,157.78,9.636]
[1728953336178,15.36502,157.85,157.78,1.3867]
[1728953336679,3.1687,157.82,157.78,1.3867]
[1728953336880,3.09175201,157.82,157.67,0.12502]
[1728953337083,3.1699,157.76,157.71,4.5454]
[1728953337384,20.32,157.81,157.71,1.3747]
[1728953337579,3.1693,157.79,157.74,3.1701]
[1728953338979,3.1694,157.78,157.74,3.1701]
[1728953339781,3.1694,157.78,157.74,8.2501]
[1728953339977,3.1692,157.79,157.74,5.08]
[1728953340182,3.1692,157.79,157.75,3.1699]
[1728953341381,5.08,157.81,157.74,5.08]
[1728953341583,3.1695,157.78,157.74,5.08]
[1728953341785,15.36502,157.85,157.74,20.32]
[1728953341977,0.12502,157.85,157.81,3.1687]
[1728953342388,0.12502,157.85,157.79,20.32]
[1728953342590,0.12502,157.85,157.79,22.8978]
[1728953342786,0.12502,157.85,157.82,3.1686]
[1728953342988,0.12502,157.85,157.81,15.24]
[1728953343291,0.12502,157.85,157.82,3.1686]
[1728953344085,3.29322,157.85,157.81,18.4088]
[1728953344383,0.12502,157.85,157.81,15.24]
[1728953344889,3.1682,157.84,157.81,15.24]
[1728953345189,0.12502,157.85,157.81,15.24]
[1728953345583,3.29312,157.85,157.81,18.4088]
[1728953348391,0.12502,157.85,157.8,1.3148]
[1728953349289,0.12502,157.85,157.79,17.8178]
[1728953349597,3.1689,157.81,157.77,3.1695]
[1728953349892,0.12502,157.85,157.76,20.32]
[1728953350093,0.12502,157.85,157.74,2.6785]
[1728953350094,15.24,157.84,157.75,20.32]
[1728953350287,18.45438073,157.83,157.75,5.08]
[1728953350486,5.08,157.82,157.74,2.6785]
[1728953351097,3.1695,157.78,157.74,5.8486]
[1728953351695,5.08,157.82,157.74,5.8486]
[1728953352389,3.1694,157.78,157.74,5.8486]
[1728953352585,3.1694,157.78,157.74,2.6785]
[1728953352791,5.08,157.83,157.75,15.24]
[1728953352984,3.1691,157.8,157.75,15.24]
[1728953353188,3.1691,157.8,157.76,3.1697]
[1728953353590,3.1692,157.79,157.76,3.1697]
[1728953355792,3.1692,157.8,157.76,3.1698]
[1728953356099,5.08,157.83,157.77,15.24]
[1728953356287,0.12502,157.85,157.81,15.24]
[1728953356495,0.12502,157.91,157.84,15.24]
[1728953356700,0.12502,157.91,157.87,15.24]
[1728953357395,0.12502,157.91,157.89,15.24]
[1728953357593,0.12502,157.91,157.9,3.167]
[1728953357996,0.12502,157.97,157.89,29.41]
[1728953358892,3.29062,157.97,157.89,29.41]
[1728953359493,3.1658,157.96,157.89,29.41]
[1728953359686,0.12502,157.97,157.89,29.41]
[1728953359897,0.12502,157.97,157.91,3.1667]
[1728953360097,0.12502,157.97,157.89,29.41]
[1728953360696,3.1658,157.96,157.91,3.1667]
[1728953361299,0.12502,157.97,157.89,29.41]
[1728953361496,3.166,157.95,157.9,3.1669]
[1728953361797,0.12502,157.97,157.89,29.41]
[1728953361994,3.1663,157.94,157.89,32.5772]
[1728953362600,3.1665,157.93,157.88,3.1673]
[1728953362792,0.12502,157.97,157.88,5.08]
[1728953363296,3.1669,157.91,157.87,6.3547]
[1728953363795,3.1669,157.91,157.87,9.5223]
[1728953363998,3.167,157.9,157.87,5.08]
[1728953364396,3.17393023,157.94,157.85,5.20502]
[1728953364589,5.08,157.96,157.85,5.20502]
[1728953364789,0.99162455,157.95,157.85,5.20502]
[1728953364998,3.15049236,157.94,157.85,5.20502]
[1728953365201,2.6386,157.94,157.85,0.12502]
[1728953365497,3.20275247,157.93,157.85,0.12502]
[1728953365696,5.08,157.92,157.85,0.12502]
[1728953366197,3.1677,157.87,157.85,0.12502]
[1728953366403,5.08,157.92,157.85,0.12502]
[1728953366801,3.1678,157.86,157.85,0.12502]
[1728953367195,5.08,157.92,157.85,0.12502]
[1728953367598,3.1677,157.87,157.85,0.12502]
[1728953369905,3.1678,157.86,157.85,0.12502]
[1728953370994,5.08,157.92,157.85,0.12502]
[1728953371508,5.08,157.92,157.85,3.29292]
[1728953371710,5.08,157.92,157.85,0.12502]
[1728953372405,3.1675,157.88,157.85,0.12502]
[1728953372608,5.08,157.92,157.85,0.12502]
[1728953373003,3.1677,157.87,157.85,0.12502]
[1728953373203,5.08,157.92,157.85,0.12502]
[1728953373404,1.2945,157.91,157.85,0.12502]
[1728953373604,3.1678,157.86,157.85,0.12502]
[1728953381206,1.2945,157.91,157.85,0.12502]
[1728953381406,5.16,157.9,157.85,0.12502]
[1728953381908,3.1676,157.87,157.85,3.29292]
[1728953382915,3.1676,157.87,157.85,0.12502]
[1728953384012,3.1678,157.86,157.85,0.12502]
[1728953408937,8.2478,157.86,157.85,0.12502]
[1728953409439,8.2478,157.86,157.79,0.12502]
[1728953409440,3.169,157.8,157.79,0.12502]
[1728953409632,5.08,157.86,157.79,0.12502]
[1728953410441,3.1687,157.82,157.79,3.29402]
[1728953412540,5.08,157.87,157.84,3.168]
[1728953412845,5.08,157.87,157.81,15.21]
[1728953413042,3.1681,157.85,157.81,15.21]
[1728953413636,3.1681,157.85,157.82,3.1685]
[1728953416646,5.08,157.87,157.81,18.3786]
[1728953416647,3.1682,157.84,157.81,18.3786]
[1728953416844,3.1682,157.84,157.81,15.21]
[1728953418239,3.1676,157.87,157.84,3.1682]
[1728953418446,5.08,157.89,157.84,3.1682]
[1728953418750,3.1677,157.87,157.84,3.1682]
[1728953418951,1.43632,157.91,157.83,15.21]
[1728953419148,5.08,157.9,157.83,15.21]
[1728953419451,3.1674,157.88,157.85,3.168]
[1728953419950,3.1674,157.88,157.84,3.1681]
[1728953420150,3.1674,157.88,157.83,15.21]
[1728953420551,3.1674,157.88,157.85,3.1679]
[1728953420745,0.12502,157.91,157.87,15.21]
[1728953422239,0.12502,157.91,157.9,3.167]
[1728953422548,0.12502,157.97,157.89,15.21]
[1728953422749,0.12502,157.97,157.92,15.21]
[1728953423442,0.12502,157.97,157.93,3.1663]
[1728953423443,3.1658,157.96,157.93,3.1663]
[1728953424851,3.1658,157.96,157.92,15.21]
[1728953425150,3.1658,157.96,157.92,18.3765]
[1728953426450,3.1658,157.96,157.93,3.1664]
[1728953426851,0.12502,157.97,157.92,15.21]
[1728953427254,0.12502,157.97,157.93,3.1663]
[1728953428154,3.1658,157.96,157.93,3.1663]
[1728953429958,3.29072,157.97,157.94,3.1661]
[1728953432456,0.12502,157.97,157.91,5.08]
[1728953433651,3.1658,157.96,157.91,5.08]
[1728953434255,3.1658,157.96,157.93,3.1662]
[1728953435254,3.1658,157.96,157.91,5.08]
[1728953435255,0.12502,157.97,157.91,5.08]
[1728953435557,0.12502,157.97,157.96,3.1658]
[1728953435858,8.28792037,158.03,158.02,3.1646]
[1728953435859,0.12502,158.03,158.02,3.1646]
[1728953436253,0.12502,158.03,157.97,15.21]
[1728953436458,0.12502,158.03,158.0,3.1648]
[1728953436759,0.12502,158.03,157.97,15.21]
[1728953436959,3.28942,158.03,157.99,3.1651]
[1728953437952,0.12502,158.03,158.0,3.1649]
[1728953438453,3.28952,158.03,157.99,3.1652]
[1728953439457,3.28952,158.03,158.0,3.165]
[1728953439655,0.12502,158.03,158.0,3.165]
[1728953441564,0.12502,158.03,158.01,3.1648]
[1728953443256,3.1648,158.02,157.99,3.1651]
[1728953443458,0.12502,158.03,157.95,20.27]
[1728953443964,9.73,158.0,157.96,3.1657]
[1728953444157,12.91700177,158.0,157.96,3.1657]
[1728953444460,3.1652,157.99,157.96,3.1657]
[1728953444661,12.91700177,158.0,157.95,9.73]
[1728953445156,3.1655,157.98,157.95,12.8959]
[1728953445866,3.1655,157.98,157.95,3.1659]
[1728953447271,3.18700177,158.0,157.95,3.1659]
[1728953447470,3.1656,157.97,157.95,3.1659]
[1728953448760,3.21026399,158.0,157.92,19.3041]
[1728953448958,3.166,157.96,157.92,19.3041]
[1728953449155,3.15801051,158.0,157.92,19.3041]
[1728953449362,3.1655,157.98,157.95,3.1659]
[1728953450161,3.165,158.0,157.97,3.1655]
[1728953450768,1.2917,158.02,157.97,3.1655]
[1728953450961,3.1652,157.99,157.97,3.1655]
[1728953451162,3.1652,157.99,157.96,3.1656]
[1728953454669,3.1648,158.01,157.96,15.21]
[1728953454867,1.2917,158.02,157.96,15.21]
[1728953455262,5.18502,158.03,157.96,15.21]
[1728953455572,0.12502,158.03,157.98,15.21]
[1728953455768,3.28942,158.03,158.01,3.1646]
[1728953455968,0.12502,158.03,157.98,15.21]
[1728953456972,0.12502,158.03,158.01,3.1647]
[1728953457471,0.12502,158.03,157.99,5.06]
[1728953457668,0.12502,158.03,158.02,3.1646]
[1728953458367,0.12502,158.03,158.02,18.3746]
[1728953459769,0.12502,158.03,158.02,3.1646]
[1728953459961,0.12502,158.03,158.0,20.27]
[1728953460168,0.12502,158.03,158.02,3.1646]
[1728953461074,0.12502,158.09,158.05,15.21]
[1728953461269,0.12502,158.09,158.05,18.31727272]
[1728953461673,0.12502,158.09,158.08,3.1634]
[1728953463075,0.12502,158.15,158.07,18.43491428]
[1728953463272,0.12502,158.15,158.11,3.1626]